fUST/lending_fUST_20250701
["ID","MTS","AMOUNT","RATE_DAILY","PERIOD"]
[368725216,1751328640814,-460.0,0.00018901,2]
[368725218,1751328640826,-460.0,0.00018901,2]
[368725220,1751328640836,-575.26055875,0.00018901,2]
[368725221,1751328640848,-460.0,0.00018901,2]
[368725223,1751328640859,-460.0,0.00018901,2]
[368725225,1751328640870,-460.0,0.00018901,2]
[368725227,1751328640880,-460.0,0.00018901,2]
[368725228,1751328640890,-600.07979377,0.00018901,2]
[368725229,1751328640900,-460.0,0.00018901,2]
[368725230,1751328640910,-460.0,0.00018901,2]
[368725231,1751328640919,-460.0,0.00018901,2]
[368725232,1751328640930,-460.0,0.00018901,2]
[368725233,1751328640940,-460.0,0.00018901,2]
[368725234,1751328640949,-460.0,0.00018901,2]
[368725235,1751328640960,-460.0,0.00018901,2]
[368725236,1751328640970,-460.0,0.00018901,2]
[368725237,1751328640979,-460.0,0.00018901,2]
[368725238,1751328640989,-460.0,0.00018901,2]
[368725239,1751328641000,-460.0,0.00018901,2]
[368725240,1751328641010,-460.0,0.00018901,2]
[368725241,1751328641020,-460.0,0.00018901,2]
[368725242,1751328641031,-460.0,0.00018901,2]
[368725243,1751328641040,-460.0,0.00018901,2]
[368725244,1751328641050,-249.25002461,0.00018901,2]
[368725245,1751328641068,-183.12758625,0.00018901,2]
[368725246,1751328641078,-460.0,0.00018901,2]
[368725247,1751328641088,-425.9113495,0.00018901,2]
[368725260,1751328644569,-460.87804234,0.00018803,2]
[368725261,1751328644579,-460.0,0.00018803,2]
[368725262,1751328644589,-526.90606185,0.00018804,2]
[368725263,1751328644599,-526.90606185,0.00018804,2]
[368725264,1751328644609,-526.90606185,0.00018804,2]
[368725265,1751328644619,-526.90606185,0.00018804,2]
[368725266,1751328644629,-460.0,0.00018899,2]
[368725267,1751328644639,-34.0886505,0.00018901,2]
[368725268,1751328644650,-460.0,0.00018901,2]
[368725269,1751328644660,-460.0,0.00018901,2]
[368725270,1751328644669,-460.0,0.00018901,2]
[368725271,1751328644679,-460.0,0.00018901,2]
[368725272,1751328644690,-460.0,0.00018901,2]
[368725273,1751328644701,-155.09349061,0.00018901,2]
[368725276,1751328644713,-304.90650939,0.00018901,2]
[368725277,1751328644723,-460.0,0.00018901,2]
[368725278,1751328644734,-460.0,0.00018901,2]
[368725279,1751328644745,-460.0,0.00018901,2]
[368725280,1751328644755,-408.17705296,0.00018901,2]
[368725281,1751328644774,-383.73,0.00018804,2]
[368725290,1751328645825,-143.17606185,0.00018804,2]
[368725291,1751328645835,-526.90606185,0.00018804,2]
[368725292,1751328645844,-526.90606185,0.00018804,2]
[368725293,1751328645854,-526.90606185,0.00018804,2]
[368725294,1751328645866,-526.90606185,0.00018804,2]
[368725296,1751328645876,-526.90606185,0.00018804,2]
[368725298,1751328645887,-526.90606185,0.00018804,2]
[368725299,1751328645896,-526.90606185,0.00018804,2]
[368725301,1751328645907,-101.25181825,0.00018901,2]
[368725303,1751328645918,-437.01058632,0.00018901,2]
[368725305,1751328645927,-460.0,0.00018901,2]
[368725307,1751328645937,-460.0,0.00018901,2]
[368725308,1751328645949,-460.0,0.00018901,2]
[368725310,1751328645960,-479.49366283,0.00018901,2]
[368725311,1751328645973,-460.0,0.00018901,2]
[368725312,1751328645990,-377.0364096,0.00018901,2]
[368725313,1751328646002,-460.0,0.00018901,2]
[368725314,1751328646012,-460.0,0.00018901,2]
[368725315,1751328646021,-460.0,0.00018901,2]
[368725316,1751328646032,-460.0,0.00018901,2]
[368725317,1751328646047,-114.38921204,0.00018901,2]
[368725319,1751328646074,-345.61078796,0.00018901,2]
[368725320,1751328646084,-460.0,0.00018901,2]
[368725321,1751328646093,-460.0,0.00018901,2]
[368725322,1751328646103,-460.0,0.00018901,2]
[368725323,1751328646112,-460.0,0.00018901,2]
[368725324,1751328646123,-460.0,0.00018901,2]
[368725325,1751328646132,-460.0,0.00018901,2]
[368725326,1751328646142,-460.0,0.00018901,2]
[368725327,1751328646152,-460.0,0.00018901,2]
[368725328,1751328646162,-460.0,0.00018901,2]
[368725329,1751328646172,-460.0,0.00018901,2]
[368725330,1751328646182,-460.0,0.00018901,2]
[368725331,1751328646191,-522.75056701,0.00018901,2]
[368725332,1751328646201,-460.0,0.00018901,2]
[368725333,1751328646211,-539.39268379,0.00018901,2]
[368725334,1751328646220,-460.0,0.00018901,2]
[368725335,1751328646230,-380.30979759,0.00018901,2]
[368725336,1751328646239,-460.0,0.00018901,2]
[368725337,1751328646248,-460.0,0.00018901,2]
[368725338,1751328646258,-460.0,0.00018901,2]
[368725339,1751328646269,-460.0,0.00018901,2]
[368725340,1751328646279,-484.79800205,0.00018901,2]
[368725341,1751328646288,-460.0,0.00018901,2]
[368725342,1751328646298,-460.0,0.00018901,2]
[368725343,1751328646308,-460.0,0.00018901,2]
[368725344,1751328646317,-460.0,0.00018901,2]
[368725345,1751328646327,-460.0,0.00018901,2]
[368725346,1751328646336,-460.0,0.00018901,2]
[368725347,1751328646346,-460.0,0.00018901,2]
[368725348,1751328646355,-460.0,0.00018901,2]
[368725349,1751328646364,-571.67114657,0.00018901,2]
[368725350,1751328646374,-460.0,0.00018901,2]
[368725351,1751328646383,-460.0,0.00018901,2]
[368725352,1751328646393,-460.0,0.00018901,2]
[368725353,1751328646402,-460.0,0.00018901,2]
[368725354,1751328646411,-460.0,0.00018901,2]
[368725355,1751328646421,-460.0,0.00018901,2]
[368725356,1751328646430,-460.0,0.00018901,2]
[368725357,1751328646440,-486.39407266,0.00018901,2]
[368725358,1751328646450,-460.0,0.00018901,2]
[368725359,1751328646460,-460.0,0.00018901,2]
[368725360,1751328646470,-460.0,0.00018901,2]
[368725361,1751328646479,-460.0,0.00018901,2]
[368725362,1751328646488,-460.0,0.00018901,2]
[368725363,1751328646498,-460.0,0.00018901,2]
[368725364,1751328646508,-460.0,0.00018901,2]
[368725365,1751328646517,-460.0,0.00018901,2]
[368725366,1751328646527,-460.0,0.00018901,2]
[368725367,1751328646537,-460.0,0.00018901,2]
[368725368,1751328646546,-460.0,0.00018901,2]
[368725369,1751328646556,-460.0,0.00018901,2]
[368725370,1751328646566,-460.0,0.00018901,2]
[368725371,1751328646575,-223.5638533,0.00018901,2]
[368725372,1751328646584,-460.0,0.00018901,2]
[368725373,1751328646594,-460.0,0.00018901,2]
[368725374,1751328646603,-323.04674486,0.00018901,2]
[368725375,1751328646616,-136.95325514,0.00018901,2]
[368725376,1751328646625,-460.0,0.00018901,2]
[368725377,1751328646634,-460.0,0.00018901,2]
[368725378,1751328646644,-460.0,0.00018901,2]
[368725379,1751328646654,-460.0,0.00018901,2]
[368725380,1751328646664,-460.0,0.00018901,2]
[368725381,1751328646673,-203.1492607,0.00018901,2]
[368725382,1751328646685,-256.8507393,0.00018901,2]
[368725383,1751328646694,-460.0,0.00018901,2]
[368725384,1751328646704,-460.0,0.00018901,2]
[368725385,1751328646714,-460.0,0.00018901,2]
[368725386,1751328646723,-500.0,0.00018902,2]
[368725387,1751328646733,-500.0,0.00018902,2]
[368725388,1751328646742,-460.0,0.00018904,2]
[368725389,1751328646752,-460.0,0.00018904,2]
[368725390,1751328646761,-460.0,0.00018904,2]
[368725391,1751328646770,-500.0,0.00018904,2]
[368725392,1751328646780,-460.0,0.00018904,2]
[368725393,1751328646790,-460.0,0.00018904,2]
[368725394,1751328646806,-460.0,0.00018904,2]
[368725395,1751328646816,-460.0,0.00018904,2]
[368725396,1751328646825,-460.0,0.00018904,2]
[368725397,1751328646835,-470.9743798,0.00018904,2]
[368725398,1751328646845,-460.0,0.00018904,2]
[368725399,1751328646854,-460.0,0.00018904,2]
[368725400,1751328646866,-460.0,0.00018904,2]
[368725401,1751328646876,-460.0,0.00018904,2]
[368725402,1751328646885,-460.0,0.00018904,2]
[368725403,1751328646895,-460.0,0.00018904,2]
[368725404,1751328646905,-500.0,0.00018905,2]
[368725405,1751328646915,-516.7,0.00018906,2]
[368725406,1751328646924,-160.0,0.00018958,2]
[368725407,1751328646934,-491.20603438,0.00018971,2]
[368725408,1751328646945,-460.0,0.00018971,2]
[368725409,1751328646955,-460.0,0.00018971,2]
[368725410,1751328646965,-522.08917001,0.00018971,2]
[368725411,1751328646974,-460.0,0.00018971,2]
[368725412,1751328646984,-367.85770775,0.00018971,2]
[368725413,1751328646993,-460.0,0.00018971,2]
[368725414,1751328647003,-460.0,0.00018971,2]
[368725415,1751328647012,-460.0,0.00018971,2]
[368725416,1751328647023,-460.0,0.00018971,2]
[368725417,1751328647032,-400.20097601,0.00018971,2]
[368725418,1751328647041,-460.0,0.00018971,2]
[368725419,1751328647051,-460.0,0.00018971,2]
[368725420,1751328647062,-460.0,0.00018971,2]
[368725421,1751328647072,-460.0,0.00018971,2]
[368725422,1751328647081,-460.0,0.00018971,2]
[368725423,1751328647091,-282.47397513,0.00018971,2]
[368725424,1751328647101,-460.0,0.00018971,2]
[368725425,1751328647110,-460.0,0.00018971,2]
[368725426,1751328647120,-460.0,0.00018971,2]
[368725427,1751328647129,-460.0,0.00018971,2]
[368725428,1751328647139,-238.468812,0.00018971,2]
[368725429,1751328647161,-221.531188,0.00018971,2]
[368725430,1751328647171,-460.0,0.00018971,2]
[368725431,1751328647180,-302.63687509,0.00019,2]
[368725432,1751328647190,-174.68,0.00019074,2]
[368725433,1751328647199,-410.78133808,0.00019075,2]
[368725435,1751328807293,330.019473,0.00013699,2]
[368725540,1751329640685,-288.40169138,0.00018523,2]
[368725541,1751329640717,-347.72058517,0.00018598,2]
[368725542,1751329640746,-2992.76080527,0.000186,2]
[368725543,1751329640770,-226.66470264,0.00018673,2]
[368725544,1751329640795,-106.76134283,0.00018692,2]
[368725545,1751329642143,-931.71644738,0.00018692,2]
[368725549,1751329678179,396.47,0.00018013,2]
[368725561,1751329774192,-161.52220979,0.00018692,2]
[368725562,1751329774215,-529.32,0.00018693,3]
[368725563,1751329774242,-264.66,0.00018693,3]
[368725564,1751329774264,-794.02,0.00018693,3]
[368725565,1751329774287,-300.0,0.00018695,2]
[368725566,1751329774308,-460.0,0.00018696,2]
[368725567,1751329774333,-460.0,0.00018696,2]
[368725568,1751329774355,-460.0,0.00018696,2]
[368725569,1751329774379,-460.0,0.00018696,2]
[368725570,1751329774402,-460.0,0.00018696,2]
[368725571,1751329774426,-460.0,0.00018696,2]
[368725572,1751329774447,-460.0,0.00018696,2]
[368725573,1751329774468,-460.0,0.00018696,2]
[368725574,1751329774489,-460.0,0.00018696,2]
[368725575,1751329774510,-460.0,0.00018696,2]
[368725576,1751329774531,-574.52,0.00018696,2]
[368725577,1751329774555,-460.0,0.00018696,2]
[368725578,1751329774576,-500.0,0.00018696,2]
[368725579,1751329774598,-500.0,0.00018696,2]
[368725580,1751329774619,-219.71432971,0.00018696,2]
[368725581,1751329774641,-500.0,0.00018696,2]
[368725582,1751329774662,-568.98601974,0.00018696,2]
[368725583,1751329774684,-500.0,0.00018696,2]
[368725584,1751329774706,-500.0,0.00018696,2]
[368725585,1751329774727,-500.0,0.00018696,2]
[368725586,1751329774748,-500.0,0.00018696,2]
[368725587,1751329774769,-500.0,0.00018696,2]
[368725588,1751329774790,-500.0,0.00018696,2]
[368725589,1751329774811,-459.52370765,0.00018696,2]
[368725590,1751329774833,-500.0,0.00018696,2]
[368725591,1751329774856,-500.0,0.00018696,2]
[368725592,1751329774878,-500.0,0.00018696,2]
[368725593,1751329774899,-500.0,0.00018696,2]
[368725594,1751329774920,-500.0,0.00018696,2]
[368725595,1751329774943,-394.80866447,0.00018696,2]
[368725597,1751329825324,324.616238,0.00013699,2]
[368725613,1751329831887,-181.33176208,0.00018673,2]
[368725614,1751329831897,-285.53692377,0.00018695,2]
[368725615,1751329831909,-14.46307623,0.00018695,2]
[368725616,1751329831918,-300.0,0.00018695,2]
[368725617,1751329831928,-300.0,0.00018695,2]
[368725618,1751329831937,-460.0,0.00018696,2]
[368725619,1751329831948,-460.0,0.00018696,2]
[368725620,1751329831958,-496.64,0.00018696,2]
[368725621,1751329831967,-460.0,0.00018696,2]
[368725622,1751329831977,-8172.61890775,0.00018696,2]
[368725623,1751329831989,-21745.79204538,0.00018696,2]
[368725624,1751329832000,-460.0,0.00018697,2]
[368725625,1751329832010,-460.0,0.00018697,2]
[368725626,1751329832019,-460.0,0.00018697,2]
[368725627,1751329832030,-248.30678255,0.00018697,2]
[368725628,1751329832042,-211.69321745,0.00018697,2]
[368725629,1751329832052,-460.0,0.00018698,2]
[368725630,1751329832063,-460.0,0.00018698,2]
[368725631,1751329832073,-460.0,0.00018698,2]
[368725632,1751329832083,-460.0,0.00018698,2]
[368725633,1751329832092,-460.0,0.00018698,2]
[368725634,1751329832102,-432.12601947,0.00018698,2]
[368725635,1751329832113,-460.0,0.00018698,2]
[368725636,1751329832123,-460.0,0.00018698,2]
[368725637,1751329832134,-460.0,0.00018698,2]
[368725638,1751329832144,-460.0,0.00018698,2]
[368725639,1751329832154,-460.0,0.00018698,2]
[368725640,1751329832164,-460.0,0.00018698,2]
[368725641,1751329832174,-460.0,0.00018698,2]
[368725642,1751329832186,-460.0,0.00018698,2]
[368725643,1751329832197,-460.0,0.00018698,2]
[368725644,1751329832206,-692.24,0.00018698,2]
[368725645,1751329832216,-460.0,0.00018698,2]
[368725646,1751329832226,-1036.63,0.00018698,2]
[368725647,1751329832236,-460.0,0.00018698,2]
[368725648,1751329832246,-536.59,0.00018698,2]
[368725649,1751329832257,-835.4,0.00018698,2]
[368725650,1751329832266,-460.0,0.00018698,2]
[368725651,1751329832279,-257.32,0.00018698,2]
[368725652,1751329832289,-460.0,0.00018698,2]
[368725653,1751329832299,-536.43,0.00018698,2]
[368725654,1751329832309,-460.0,0.00018698,2]
[368725656,1751329832318,-460.0,0.00018698,2]
[368725658,1751329832328,-460.0,0.00018698,2]
[368725660,1751329832337,-460.0,0.00018698,2]
[368725662,1751329832347,-460.0,0.00018698,2]
[368725663,1751329832357,-460.0,0.00018698,2]
[368725664,1751329832366,-460.0,0.00018698,2]
[368725665,1751329832377,-460.0,0.00018698,2]
[368725666,1751329832386,-460.0,0.00018698,2]
[368725667,1751329832396,-460.0,0.00018698,2]
[368725668,1751329832406,-824.98,0.00018698,2]
[368725669,1751329832416,-460.0,0.00018698,2]
[368725680,1751329832548,-460.0,0.00018698,2]
[368725682,1751329832560,-460.0,0.00018699,2]
[368725684,1751329832570,-460.0,0.00018699,2]
[368725686,1751329832580,-460.0,0.00018699,2]
[368725688,1751329832590,-460.0,0.00018699,2]
[368725690,1751329832600,-542.44175541,0.00018699,2]
[368725692,1751329832609,-321.33140476,0.00018699,2]
[368725694,1751329832619,-460.0,0.00018699,2]
[368725695,1751329832629,-460.0,0.00018699,2]
[368725697,1751329832639,-328.98459634,0.00018699,2]
[368725699,1751329832648,-460.0,0.00018699,2]
[368725701,1751329832658,-460.0,0.000187,2]
[368725703,1751329832669,-460.0,0.000187,2]
[368725705,1751329832679,-460.0,0.000187,2]
[368725708,1751329832689,-460.0,0.000187,2]
[368725709,1751329832700,-460.53151936,0.000187,2]
[368725711,1751329832710,-460.0,0.000187,2]
[368725712,1751329832720,-460.0,0.000187,2]
[368725713,1751329832729,-460.0,0.000187,2]
[368725714,1751329832739,-460.0,0.000187,2]
[368725715,1751329832748,-460.0,0.000187,2]
[368725716,1751329832758,-460.0,0.000187,2]
[368725717,1751329832768,-460.0,0.000187,2]
[368725718,1751329832777,-460.0,0.000187,2]
[368725720,1751329832787,-460.0,0.000187,2]
[368725722,1751329832797,-460.0,0.000187,2]
[368725723,1751329832807,-453.3,0.000187,2]
[368725724,1751329832816,-328.8,0.000187,2]
[368725725,1751329832826,-204.69,0.000187,2]
[368725727,1751329832837,-152.78532835,0.000187,2]
[368725728,1751329832846,-460.64442087,0.000187,2]
[368725729,1751329832856,-460.0,0.000187,2]
[368725730,1751329832866,-460.0,0.000187,2]
[368725731,1751329832876,-460.0,0.000187,2]
[368725732,1751329832887,-460.0,0.000187,2]
[368725734,1751329832896,-460.0,0.000187,2]
[368725736,1751329832905,-81.39016933,0.000187,2]
[368725801,1751329838048,-415.48348876,0.00018699,2]
[368725802,1751329838058,-436.95355282,0.00018699,2]
[368725803,1751329838067,-500.0,0.00018699,2]
[368725804,1751329838077,-424.89070463,0.00018699,2]
[368725805,1751329838086,-550.88273768,0.00018699,2]
[368725806,1751329838097,-500.0,0.00018699,2]
[368725807,1751329838107,-500.0,0.00018699,2]
[368725808,1751329838118,-595.95237077,0.00018699,2]
[368725809,1751329838127,-500.0,0.00018699,2]
[368725810,1751329838137,-500.0,0.00018699,2]
[368725811,1751329838146,-500.0,0.00018699,2]
[368725812,1751329838156,-500.0,0.00018699,2]
[368725813,1751329838165,-500.0,0.00018699,2]
[368725814,1751329838174,-443.75007613,0.00018699,2]
[368725815,1751329838184,-378.60983067,0.000187,2]
[368725816,1751329838194,-460.0,0.000187,2]
[368725817,1751329838206,-460.0,0.000187,2]
[368725818,1751329838216,-460.0,0.000187,2]
[368725819,1751329838226,-247.78359443,0.000187,2]
[368725820,1751329838239,-212.21640557,0.000187,2]
[368725821,1751329838249,-545.3,0.000187,2]
[368725822,1751329838264,-577.86,0.000187,2]
[368725823,1751329838273,-460.0,0.000187,2]
[368725824,1751329838283,-460.0,0.000187,2]
[368725825,1751329838293,-297.15420752,0.000187,2]
[368725836,1751329840172,-162.84579248,0.000187,2]
[368725837,1751329840183,-253.80911088,0.000187,2]
[368725838,1751329840194,-231.79088912,0.000187,2]
[368725839,1751329840203,-108.57411088,0.000187,2]
[368725840,1751329840217,-358.88975829,0.000187,2]
[368725841,1751329840226,-460.0,0.000187,2]
[368725842,1751329840237,-500.0,0.000187,2]
[368725843,1751329840246,-230.42333,0.000187,2]
[368725844,1751329840260,-229.57667,0.000187,2]
[368725845,1751329840278,-460.0,0.000187,2]
[368725846,1751329840299,-85.19333,0.000187,2]
[368725847,1751329840319,-374.80667,0.000187,2]
[368725848,1751329840328,-460.0,0.000187,2]
[368725849,1751329840339,-460.0,0.000187,2]
[368725851,1751329840349,-604.09,0.000187,2]
[368725852,1751329840359,-460.0,0.000187,2]
[368725853,1751329840368,-460.0,0.000187,2]
[368725854,1751329840378,-460.0,0.000187,2]
[368725855,1751329840388,-137.06623794,0.000187,2]
[368725857,1751329840401,-322.93376206,0.000187,2]
[368725858,1751329840410,-460.0,0.000187,2]
[368725859,1751329840420,-150.31099019,0.000187,2]
[368725869,1751329842992,-309.68900981,0.000187,2]
[368725870,1751329843002,-460.0,0.000187,2]
[368725871,1751329843012,-460.0,0.000187,2]
[368725872,1751329843022,-460.0,0.000187,2]
[368725873,1751329843031,-460.0,0.000187,2]
[368725874,1751329843041,-184.98,0.000187,2]
[368725875,1751329843050,-460.0,0.000187,2]
[368725876,1751329843060,-460.0,0.000187,2]
[368725877,1751329843069,-460.0,0.000187,2]
[368725878,1751329843078,-521.38,0.000187,2]
[368725879,1751329843088,-460.0,0.000187,2]
[368725880,1751329843098,-460.0,0.000187,2]
[368725881,1751329843110,-460.0,0.000187,2]
[368725882,1751329843120,-224.00714105,0.000187,2]
[368725883,1751329843132,-235.99285895,0.000187,2]
[368725884,1751329843142,-460.0,0.000187,2]
[368725885,1751329843151,-460.0,0.000187,2]
[368725886,1751329843161,-460.0,0.000187,2]
[368725887,1751329843170,-460.0,0.000187,2]
[368725888,1751329843179,-472.83,0.000187,2]
[368725889,1751329843189,-543.12,0.000187,2]
[368725890,1751329843198,-460.0,0.00018701,2]
[368725891,1751329843208,-460.0,0.00018701,2]
[368725892,1751329843218,-460.0,0.00018701,2]
[368725893,1751329843228,-460.0,0.00018701,2]
[368725894,1751329843237,-264.39429856,0.00018701,2]
[368725895,1751329843247,-460.0,0.00018701,2]
[368725896,1751329843258,-460.0,0.00018701,2]
[368725897,1751329843269,-460.0,0.00018701,2]
[368725898,1751329843278,-460.0,0.00018701,2]
[368725899,1751329843287,-460.0,0.00018701,2]
[368725900,1751329843298,-460.0,0.00018701,2]
[368725901,1751329843307,-460.0,0.00018701,2]
[368725902,1751329843316,-546.32,0.00018701,2]
[368725903,1751329843325,-606.76,0.00018701,2]
[368725904,1751329843335,-460.0,0.00018701,2]
[368725905,1751329843345,-460.0,0.00018701,2]
[368725906,1751329843355,-460.0,0.00018701,2]
[368725907,1751329843365,-460.0,0.00018701,2]
[368725908,1751329843374,-460.0,0.00018701,2]
[368725909,1751329843383,-460.0,0.00018701,2]
[368725910,1751329843393,-460.0,0.00018701,2]
[368725911,1751329843403,-460.0,0.00018701,2]
[368725912,1751329843412,-460.0,0.00018701,2]
[368725913,1751329843421,-240.47081679,0.00018701,2]
[368725914,1751329843533,-219.52918321,0.00018701,2]
[368725915,1751329843544,-419.5968503,0.00018701,2]
[368725916,1751329843556,-40.4031497,0.00018701,2]
[368725917,1751329843566,-460.0,0.00018701,2]
[368725918,1751329843575,-469.99120788,0.00018701,2]
[368725919,1751329843585,-460.0,0.00018701,2]
[368725920,1751329843595,-459.98103546,0.00018701,2]
[368725921,1751329843604,-460.0,0.00018701,2]
[368725922,1751329843615,-460.0,0.00018701,2]
[368725923,1751329843624,-460.0,0.00018701,2]
[368725924,1751329843634,-460.0,0.00018701,2]
[368725925,1751329843643,-460.0,0.00018701,2]
[368725926,1751329843652,-460.0,0.00018701,2]
[368725927,1751329843663,-460.0,0.00018701,2]
[368725928,1751329843672,-460.0,0.00018701,2]
[368725929,1751329843682,-460.0,0.00018701,2]
[368725930,1751329843692,-460.0,0.00018701,2]
[368725931,1751329843701,-303.17443583,0.00018701,2]
[368725932,1751329843716,-813.46,0.00018701,2]
[368725933,1751329843725,-460.0,0.00018701,2]
[368725934,1751329843736,-460.0,0.00018701,2]
[368725935,1751329843746,-460.0,0.00018701,2]
[368725936,1751329843756,-460.0,0.00018701,2]
[368725937,1751329843765,-460.0,0.00018701,2]
[368725938,1751329843775,-460.0,0.00018701,2]
[368725939,1751329843784,-464.01082463,0.00018701,2]
[368725940,1751329843794,-460.0,0.00018701,2]
[368725941,1751329843803,-460.0,0.00018701,2]
[368725942,1751329843813,-541.08,0.00018701,2]
[368725943,1751329843822,-460.0,0.00018701,2]
[368725944,1751329843832,-460.0,0.00018701,2]
[368725945,1751329843842,-460.0,0.00018701,2]
[368725946,1751329843851,-411.31775365,0.00018701,2]
[368725947,1751329843863,-48.68224635,0.00018701,2]
[368725948,1751329843873,-460.0,0.00018701,2]
[368725949,1751329843882,-33.39275365,0.00018701,2]
[368725950,1751329843893,-426.60724635,0.00018701,2]
[368725951,1751329843903,-500.0,0.00018702,2]
[368725952,1751329843912,-605.67825101,0.00018702,2]
[368725953,1751329843922,-500.0,0.00018702,2]
[368725954,1751329843931,-500.0,0.00018702,2]
[368725955,1751329843942,-180.21698144,0.00018702,2]
[368725956,1751329843953,-319.78301856,0.00018702,2]
[368725957,1751329843964,-500.0,0.00018702,2]
[368725958,1751329843974,-500.0,0.00018702,2]
[368725959,1751329843982,-500.0,0.00018702,2]
[368725960,1751329843992,-500.0,0.00018702,2]
[368725961,1751329844001,-500.0,0.00018702,2]
[368725962,1751329844011,-500.0,0.00018702,2]
[368725963,1751329844021,-500.0,0.00018702,2]
[368725964,1751329844030,-500.0,0.00018702,2]
[368725965,1751329844040,-500.0,0.00018702,2]
[368725966,1751329844050,-500.0,0.00018702,2]
[368725967,1751329844059,-508.09294955,0.00018702,2]
[368725968,1751329844069,-508.09294955,0.00018702,2]
[368725969,1751329844077,-508.09294955,0.00018702,2]
[368725970,1751329844086,-508.09294955,0.00018702,2]
[368725971,1751329844096,-508.09294955,0.00018702,2]
[368725972,1751329844105,-508.09294955,0.00018702,2]
[368725973,1751329844115,-508.09294955,0.00018702,2]
[368725974,1751329844124,-508.09294955,0.00018702,2]
[368725975,1751329844134,-604.24879852,0.00018702,2]
[368725976,1751329844143,-604.24879852,0.00018702,2]
[368725977,1751329844281,-604.24879852,0.00018702,2]
[368725978,1751329844292,-604.24879852,0.00018702,2]
[368725979,1751329844302,-3499.44906343,0.00018703,2]
[368725980,1751329844314,-2199.99646509,0.00018703,2]
[368725981,1751329844325,-275.5607214,0.00018703,2]
[368725982,1751329845906,-311.42548782,0.00018696,2]
[368725983,1751329845917,-413.84757897,0.00018696,2]
[368725984,1751329845960,-46.15242103,0.00018696,2]
[368725985,1751329845970,-899.31610923,0.00018703,2]
[368725986,1751329845983,-692.31,0.00018703,2]
[368725987,1751329845995,-2257.66257339,0.00018703,2]
[368725988,1751329846018,-858.2,0.00018703,2]
[368725992,1751330041472,372.50764745,0.00017897,2]
[368725996,1751330250395,-176.21527701,0.00018075,2]
[368725997,1751330254393,-236.3345722,0.00018075,2]
[368725998,1751330256181,-29.45015079,0.00018075,2]
[368726001,1751330528311,157.76704167,0.00017932,2]
[368726005,1751330700274,-152.0,0.0001807,2]
[368726006,1751330703189,-348.0,0.0001807,2]
[368726007,1751330722069,163.0,0.00018,2]
[368726008,1751330723130,163.0,0.00018,2]
[368726009,1751330744205,2162.37004172,0.00024994,120]
[368726011,1751330829091,-500.0,0.0001807,2]
[368726012,1751330829113,-500.0,0.0001807,2]
[368726013,1751330829134,-500.0,0.0001807,2]
[368726014,1751330829157,-442.0,0.00018133,2]
[368726015,1751330829179,-442.0,0.00018203,2]
[368726016,1751330829201,-442.0,0.00018303,2]